fUST/lending_fUST_20251007
["ID","MTS","AMOUNT","RATE_DAILY","PERIOD"]
[389660310,1759774132983,1500.0,0.00019178,14]
[389660311,1759774133283,1500.0,0.00019178,14]
[389660312,1759774133575,1500.0,0.00019178,14]
[389660313,1759774133864,1500.0,0.00019178,14]
[389660314,1759774134158,1500.0,0.00019178,14]
[389660315,1759774134482,1500.0,0.00019178,14]
[389660316,1759774134949,1500.0,0.00019178,14]
[389660317,1759774135249,1500.0,0.00019178,14]
[389660318,1759774135538,1500.0,0.00019178,14]
[389660319,1759774135831,1500.0,0.00019178,14]
[389660320,1759774136127,1500.0,0.00019178,14]
[389660321,1759774136413,1500.0,0.00019178,14]
[389660322,1759774136708,1500.0,0.00019178,14]
[389660323,1759774136999,1500.0,0.00019178,14]
[389660324,1759774137286,1500.0,0.00019178,14]
[389660325,1759774137719,1500.0,0.00019178,14]
[389660326,1759774138148,1500.0,0.00019178,14]
[389660327,1759774138482,1500.0,0.00019178,14]
[389660328,1759774138775,1500.0,0.00019178,14]
[389660329,1759774139077,1500.0,0.00019178,14]
[389660330,1759774139388,1500.0,0.00019178,14]
[389660331,1759774139665,1500.0,0.00019178,14]
[389660332,1759774139951,1500.0,0.00019178,14]
[389660333,1759774140271,1500.0,0.00019178,14]
[389660334,1759774140596,1500.0,0.00019178,14]
[389660335,1759774140905,1500.0,0.00019178,14]
[389660336,1759774141301,1500.0,0.00019178,14]
[389660337,1759774141575,1500.0,0.00019178,14]
[389660338,1759774141879,1500.0,0.00019178,14]
[389660339,1759774142176,1500.0,0.00019178,14]
[389660340,1759774142823,1500.0,0.00019178,14]
[389660341,1759774143128,1500.0,0.00019178,14]
[389660342,1759774143454,1500.0,0.00019178,14]
[389660343,1759774143748,1500.0,0.00019178,14]
[389660344,1759774144069,1500.0,0.00019178,14]
[389660345,1759774144430,1500.0,0.00019178,14]
[389660346,1759774144763,1500.0,0.00019178,14]
[389660347,1759774145284,1500.0,0.00019178,14]
[389660348,1759774145766,1500.0,0.00019178,14]
[389660349,1759774146106,1500.0,0.00019178,14]
[389660350,1759774146502,1500.0,0.00019178,14]
[389660351,1759774146861,1500.0,0.00019178,14]
[389660352,1759774147202,1500.0,0.00019178,14]
[389660353,1759774147492,475.42431986,0.00019178,14]
[389660357,1759774189902,-1024.57568014,0.00019178,14]
[389660358,1759774189935,-1500.0,0.00019178,14]
[389660359,1759774189967,-1500.0,0.00019178,14]
[389660360,1759774189999,-1500.0,0.00019178,14]
[389660361,1759774190031,-1500.0,0.00019178,14]
[389660362,1759774190061,-1500.0,0.00019178,14]
[389660363,1759774190092,-1500.0,0.00019178,14]
[389660364,1759774190305,-1500.0,0.00019178,14]
[389660365,1759774190341,-1500.0,0.00019178,14]
[389660366,1759774190373,-1500.0,0.00019178,14]
[389660367,1759774190405,-1500.0,0.00019178,14]
[389660368,1759774190436,-1500.0,0.00019178,14]
[389660369,1759774190468,-1500.0,0.00019178,14]
[389660370,1759774190500,-1500.0,0.00019178,14]
[389660371,1759774190532,-1500.0,0.00019178,14]
[389660372,1759774190567,-1500.0,0.00019178,14]
[389660373,1759774190600,-1500.0,0.00019178,14]
[389660374,1759774190631,-1500.0,0.00019178,14]
[389660375,1759774190662,-1500.0,0.00019178,14]
[389660376,1759774190692,-1500.0,0.00019178,14]
[389660377,1759774190723,-1500.0,0.00019178,14]
[389660378,1759774190753,-1500.0,0.00019178,14]
[389660379,1759774190786,-1500.0,0.00019178,14]
[389660380,1759774190816,-1500.0,0.00019178,14]
[389660381,1759774190848,-1500.0,0.00019178,14]
[389660382,1759774190879,-1500.0,0.00019178,14]
[389660383,1759774190910,-1500.0,0.00019178,14]
[389660384,1759774190941,-1500.0,0.00019178,14]
[389660385,1759774190971,-1500.0,0.00019178,14]
[389660386,1759774191002,-1500.0,0.00019178,14]
[389660387,1759774191033,-1500.0,0.00019178,14]
[389660388,1759774191063,-1500.0,0.00019178,14]
[389660389,1759774191092,-1500.0,0.00019178,14]
[389660390,1759774191123,-1500.0,0.00019178,14]
[389660391,1759774191153,-1500.0,0.00019178,14]
[389660392,1759774191184,-1500.0,0.00019178,14]
[389660393,1759774191216,-1500.0,0.00019178,14]
[389660394,1759774191246,-1500.0,0.00019178,14]
[389660395,1759774191279,-1500.0,0.00019178,14]
[389660396,1759774191309,-1500.0,0.00019178,14]
[389660397,1759774191340,-1500.0,0.00019178,14]
[389660398,1759774191369,-1500.0,0.00019178,14]
[389660399,1759774191399,-1071.235291,0.00019178,14]
[389660400,1759774217020,301.28250478,0.00019178,14]
[389660470,1759774232334,-5000.0,0.00016617,2]
[389660472,1759774232343,-303.2519556,0.00016701,2]
[389660474,1759774232353,-300.0,0.00016784,2]
[389660476,1759774232362,-720.13078536,0.00016785,2]
[389660478,1759774232371,-2877.64261831,0.00016785,2]
[389660480,1759774232380,-2325.1202805,0.00016929,2]
[389660482,1759774232390,-1000.0,0.00017303,2]
[389660484,1759774232399,-333.57715116,0.00017501,2]
[389660486,1759774232408,-1447.7756004,0.00017726,2]
[389660488,1759774232417,-3000.0,0.00017911,2]
[389660490,1759774232426,-3285.57385335,0.0001799,2]
[389660492,1759774232435,-50000.0,0.0001799,2]
[389660494,1759774232444,-365.86752213,0.00018224,2]
[389660496,1759774232453,-439.99692871,0.00018235,2]
[389660498,1759774232462,-363.90234672,0.00018301,2]
[389660500,1759774232471,-420.0,0.00018336,2]
[389660502,1759774232481,-3489.9216012,0.00018396,2]
[389660504,1759774232490,-500.0,0.00018573,2]
[389660506,1759774232499,-500.0,0.00018573,2]
[389660508,1759774232508,-500.0,0.00018573,2]
[389660510,1759774232517,-500.0,0.00018573,2]
[389660512,1759774232526,-500.0,0.00018573,2]
[389660514,1759774232535,-500.0,0.00018573,2]
[389660516,1759774232544,-500.0,0.00018574,2]
[389660518,1759774232553,-500.0,0.00018574,2]
[389660520,1759774232562,-500.0,0.00018574,2]
[389660522,1759774232572,-500.0,0.00018574,2]
[389660524,1759774232581,-403.8486745,0.00018574,2]
[389660526,1759774232590,-1260.34606327,0.00018575,2]
[389660866,1759774238293,-4702.7,0.00016451,2]
[389661146,1759774241125,-297.3,0.00016451,2]
[389661148,1759774241134,-21238.81562517,0.00018575,2]
[389661150,1759774241144,-151.0,0.00018575,2]
[389661152,1759774241153,-151.0,0.00018575,2]
[389661154,1759774241168,-151.0,0.00018575,2]
[389661157,1759774241185,-151.0,0.00018575,2]
[389661159,1759774241194,-151.0,0.00018575,2]
[389661161,1759774241203,-151.0,0.00018575,2]
[389661163,1759774241212,-151.0,0.00018575,2]
[389661164,1759774241220,-151.0,0.00018575,2]
[389661166,1759774241231,-4035.779992,0.00018575,2]
[389661169,1759774241245,-177.18603,0.00018575,2]
[389661171,1759774241255,-1698.41646032,0.00018575,2]
[389661173,1759774241269,-2337.36353168,0.00018575,2]
[389661175,1759774241279,-177.18603,0.00018575,2]
[389661177,1759774241288,-4035.779992,0.00018575,2]
[389661179,1759774241297,-177.18603,0.00018575,2]
[389661181,1759774241306,-2645.16040453,0.00018575,2]
[389661184,1759774241321,-1390.61958747,0.00018575,2]
[389661186,1759774241330,-177.18603,0.00018575,2]
[389661188,1759774241339,-151.0,0.00018575,2]
[389661190,1759774241348,-183.512369,0.00018575,2]
[389661192,1759774241357,-151.0,0.00018575,2]
[389661194,1759774241366,-151.0,0.00018575,2]
[389661196,1759774241375,-151.0,0.00018575,2]
[389661198,1759774241383,-151.0,0.00018575,2]
[389661200,1759774241392,-151.0,0.00018575,2]
[389661202,1759774241401,-151.0,0.00018575,2]
[389661204,1759774241410,-151.0,0.00018575,2]
[389661206,1759774241419,-151.0,0.00018575,2]
[389661208,1759774241428,-151.0,0.00018575,2]
[389661210,1759774241437,-151.0,0.00018575,2]
[389661211,1759774241446,-151.0,0.00018575,2]
[389661213,1759774241455,-151.0,0.00018575,2]
[389661215,1759774241463,-151.0,0.00018575,2]
[389661217,1759774241472,-151.0,0.00018575,2]
[389661219,1759774241481,-180.093326,0.00018575,2]
[389661221,1759774241490,-151.0,0.00018575,2]
[389661223,1759774241500,-151.0,0.00018575,2]
[389661225,1759774241509,-151.0,0.00018575,2]
[389661227,1759774241517,-151.0,0.00018575,2]
[389661229,1759774241526,-151.0,0.00018575,2]
[389661231,1759774241535,-151.0,0.00018575,2]
[389661233,1759774241544,-151.0,0.00018575,2]
[389661235,1759774241552,-286.342778,0.00018575,2]
[389661237,1759774241561,-286.342778,0.00018575,2]
[389661239,1759774241570,-151.0,0.00018575,2]
[389661240,1759774241579,-151.0,0.00018575,2]
[389661242,1759774241588,-286.342778,0.00018575,2]
[389661244,1759774241597,-286.342778,0.00018575,2]
[389661246,1759774241606,-286.342778,0.00018575,2]
[389661247,1759774241615,-141.07978275,0.00018575,2]
[389661249,1759774241627,-145.26299525,0.00018575,2]
[389661251,1759774241636,-151.0,0.00018575,2]
[389661253,1759774241645,-151.0,0.00018575,2]
[389661255,1759774241654,-286.342778,0.00018575,2]
[389661257,1759774241663,-9.06111579,0.00018575,2]
[389661258,1759774241673,-277.28166221,0.00018575,2]
[389661259,1759774241682,-271.627705,0.00018575,2]
[389661260,1759774241691,-151.0,0.00018575,2]
[389661262,1759774241700,-151.0,0.00018575,2]
[389661263,1759774241710,-151.0,0.00018575,2]
[389661265,1759774241719,-151.0,0.00018575,2]
[389661266,1759774241729,-151.0,0.00018575,2]
[389661268,1759774241738,-151.0,0.00018575,2]
[389661269,1759774241748,-151.0,0.00018575,2]
[389661270,1759774241757,-151.0,0.00018575,2]
[389661271,1759774241766,-151.0,0.00018575,2]
[389661272,1759774241776,-151.0,0.00018575,2]
[389661273,1759774241785,-151.0,0.00018575,2]
[389661274,1759774241794,-232.575663,0.00018575,2]
[389661275,1759774241803,-151.0,0.00018575,2]
[389661276,1759774241812,-151.0,0.00018575,2]
[389661277,1759774241821,-151.0,0.00018575,2]
[389661278,1759774241830,-29.24644679,0.00018575,2]
[389661279,1759774241846,-121.75355321,0.00018575,2]
[389661280,1759774241855,-151.0,0.00018575,2]
[389661281,1759774241864,-236.792001,0.00018575,2]
[389661282,1759774241873,-151.0,0.00018575,2]
[389661283,1759774241882,-397.299096,0.00018575,2]
[389661284,1759774241891,-397.299096,0.00018575,2]
[389661285,1759774241900,-397.299096,0.00018575,2]
[389661286,1759774241909,-397.299096,0.00018575,2]
[389661287,1759774241918,-397.299096,0.00018575,2]
[389661288,1759774241927,-397.299096,0.00018575,2]
[389661289,1759774241936,-397.299096,0.00018575,2]
[389661290,1759774241945,-397.299096,0.00018575,2]
[389661291,1759774241953,-151.0,0.00018575,2]
[389661292,1759774242184,-151.0,0.00018575,2]
[389661293,1759774242195,-151.0,0.00018575,2]
[389661294,1759774242204,-151.0,0.00018575,2]
[389661295,1759774242215,-151.0,0.00018575,2]
[389661296,1759774242225,-151.0,0.00018575,2]
[389661297,1759774242238,-151.0,0.00018575,2]
[389661298,1759774242247,-151.0,0.00018575,2]
[389661299,1759774242256,-229.594501,0.00018575,2]
[389661300,1759774242265,-151.0,0.00018575,2]
[389661301,1759774242276,-151.0,0.00018575,2]
[389661302,1759774242285,-756.64,0.00018579,3]
[389661303,1759774242293,-378.32,0.00018579,3]
[389661304,1759774242303,-189.16,0.00018579,3]
[389661305,1759774242312,-567.5,0.00018579,3]
[389661306,1759774242321,-1642.81578004,0.00018582,2]
[389661307,1759774242333,-365.4268922,0.00018588,2]
[389661308,1759774242342,-220.82245527,0.00018588,2]
[389661309,1759774242351,-446.086334,0.00018589,2]
[389661310,1759774242360,-446.086334,0.00018589,2]
[389661311,1759774242369,-446.086334,0.00018589,2]
[389661312,1759774242378,-446.086334,0.00018589,2]
[389661313,1759774242387,-151.0,0.00018589,2]
[389661314,1759774242396,-151.0,0.00018589,2]
[389661315,1759774242405,-279.881773,0.00018589,2]
[389661316,1759774242414,-151.0,0.00018589,2]
[389661317,1759774242423,-151.0,0.00018589,2]
[389661318,1759774242433,-151.0,0.00018589,2]
[389661319,1759774242442,-151.0,0.00018589,2]
[389661320,1759774242451,-151.0,0.00018589,2]
[389661321,1759774242460,-151.0,0.00018589,2]
[389661322,1759774242469,-151.0,0.00018589,2]
[389661323,1759774242479,-151.0,0.00018589,2]
[389661324,1759774242487,-154.796896,0.00018589,2]
[389661325,1759774242496,-151.0,0.00018589,2]
[389661326,1759774242505,-151.0,0.00018589,2]
[389661327,1759774242514,-395.681493,0.00018589,2]
[389661328,1759774242523,-151.0,0.00018589,2]
[389661329,1759774242532,-395.681493,0.00018589,2]
[389661330,1759774242541,-288.048499,0.00018589,2]
[389661331,1759774242550,-395.681493,0.00018589,2]
[389661332,1759774242560,-395.681493,0.00018589,2]
[389661333,1759774242569,-187.316008,0.00018589,2]
[389661334,1759774242578,-151.0,0.00018589,2]
[389661335,1759774242587,-297.584108,0.00018589,2]
[389661336,1759774242596,-151.0,0.00018589,2]
[389661337,1759774242605,-151.0,0.00018589,2]
[389661339,1759774242614,-300.98301,0.00018589,2]
[389661340,1759774242623,-151.0,0.00018589,2]
[389661342,1759774242632,-151.0,0.00018589,2]
[389661343,1759774242641,-4035.779992,0.00018589,2]
[389661344,1759774242650,-177.18603,0.00018589,2]
[389661345,1759774242660,-1333.48430443,0.00018589,2]
[389661349,1759774243355,-2702.29568757,0.00018589,2]
[389661350,1759774243365,-177.18603,0.00018589,2]
[389661351,1759774243374,-4035.779992,0.00018589,2]
[389661352,1759774243383,-177.18603,0.00018589,2]
[389661353,1759774243392,-4035.779992,0.00018589,2]
[389661354,1759774243402,-177.18603,0.00018589,2]
[389661355,1759774243410,-151.0,0.00018589,2]
[389661356,1759774243419,-151.0,0.00018589,2]
[389661357,1759774243428,-151.0,0.00018589,2]
[389661358,1759774243437,-151.0,0.00018589,2]
[389661359,1759774243446,-151.0,0.00018589,2]
[389661360,1759774243455,-151.0,0.00018589,2]
[389661361,1759774243464,-151.0,0.00018589,2]
[389661362,1759774243473,-151.0,0.00018589,2]
[389661363,1759774243482,-151.0,0.00018589,2]
[389661364,1759774243491,-151.0,0.00018589,2]
[389661365,1759774243501,-151.0,0.00018589,2]
[389661366,1759774243510,-151.0,0.00018589,2]
[389661367,1759774243519,-151.0,0.00018589,2]
[389661368,1759774243528,-151.0,0.00018589,2]
[389661369,1759774243537,-151.0,0.00018589,2]
[389661370,1759774243546,-151.0,0.00018589,2]
[389661371,1759774243555,-151.0,0.00018589,2]
[389661372,1759774243565,-151.0,0.00018589,2]
[389661373,1759774243574,-286.342778,0.00018589,2]
[389661374,1759774243583,-286.342778,0.00018589,2]
[389661375,1759774243592,-151.0,0.00018589,2]
[389661377,1759774243601,-201.881643,0.00018589,2]
[389661378,1759774243610,-286.342778,0.00018589,2]
[389661379,1759774243619,-286.342778,0.00018589,2]
[389661380,1759774243628,-286.342778,0.00018589,2]
[389661381,1759774243637,-286.342778,0.00018589,2]
[389661382,1759774243646,-151.0,0.00018589,2]
[389661383,1759774243656,-151.0,0.00018589,2]
[389661384,1759774243665,-286.342778,0.00018589,2]
[389661385,1759774243674,-286.342778,0.00018589,2]
[389661386,1759774243684,-151.0,0.00018589,2]
[389661387,1759774243692,-151.0,0.00018589,2]
[389661388,1759774243702,-151.0,0.00018589,2]
[389661389,1759774243711,-151.0,0.00018589,2]
[389661390,1759774243721,-151.0,0.00018589,2]
[389661391,1759774243730,-151.0,0.00018589,2]
[389661392,1759774243739,-151.0,0.00018589,2]
[389661393,1759774243749,-151.0,0.00018589,2]
[389661394,1759774243758,-151.0,0.00018589,2]
[389661395,1759774243768,-151.0,0.00018589,2]
[389661396,1759774243777,-151.0,0.00018589,2]
[389661397,1759774243786,-151.0,0.00018589,2]
[389661398,1759774243795,-151.0,0.00018589,2]
[389661399,1759774243804,-151.0,0.00018589,2]
[389661400,1759774243813,-151.0,0.00018589,2]
[389661401,1759774243823,-166.448422,0.00018589,2]
[389661402,1759774243832,-397.299096,0.00018589,2]
[389661403,1759774243841,-397.299096,0.00018589,2]
[389661404,1759774243850,-397.299096,0.00018589,2]
[389661405,1759774243859,-397.299096,0.00018589,2]
[389661406,1759774243868,-397.299096,0.00018589,2]
[389661407,1759774243878,-397.299096,0.00018589,2]
[389661408,1759774243887,-397.299096,0.00018589,2]
[389661409,1759774243896,-397.299096,0.00018589,2]
[389661410,1759774243905,-153.66,0.00018589,2]
[389661411,1759774243914,-151.0,0.00018589,2]
[389661412,1759774243923,-151.0,0.00018589,2]
[389661413,1759774243932,-151.0,0.00018589,2]
[389661414,1759774243941,-151.0,0.00018589,2]
[389661415,1759774243950,-151.0,0.00018589,2]
[389661416,1759774243960,-155.121074,0.00018589,2]
[389661417,1759774243970,-198.433024,0.00018589,2]
[389661418,1759774243979,-60953.03264598,0.00018589,2]
[389661442,1759774246230,-13952.96914602,0.00018589,2]
[389661443,1759774246287,-6982.9871154,0.00018589,2]
[389661444,1759774246299,-51491.90023714,0.00018589,2]
[389661451,1759774246485,-480.0,0.00018589,2]
[389661452,1759774296159,-720.0,0.00021403,20]
[389661456,1759774439948,1657.32534386,0.00019255,9]
[389661457,1759774440504,1500.0,0.00019178,14]
[389661458,1759774441302,1500.0,0.00019178,14]
[389661459,1759774441372,1500.0,0.00019178,14]
[389661460,1759774441620,1500.0,0.00019178,14]
[389661461,1759774442063,1500.0,0.00019178,14]
[389661462,1759774442365,1500.0,0.00019178,14]
[389661463,1759774442687,1500.0,0.00019178,14]
[389661464,1759774443102,1500.0,0.00019178,14]
[389661465,1759774443590,1500.0,0.00019178,14]
[389661466,1759774444000,1500.0,0.00019178,14]
[389661467,1759774444358,1500.0,0.00019178,14]
[389661468,1759774444674,1500.0,0.00019178,14]
[389661469,1759774444992,1500.0,0.00019178,14]
[389661470,1759774445288,1500.0,0.00019178,14]
[389661471,1759774445698,1500.0,0.00019178,14]
[389661472,1759774446049,1500.0,0.00019178,14]
[389661473,1759774446390,1500.0,0.00019178,14]
[389661474,1759774446726,1500.0,0.00019178,14]
[389661475,1759774447071,1500.0,0.00019178,14]
[389661476,1759774447408,1500.0,0.00019178,14]
[389661477,1759774447758,1500.0,0.00019178,14]
[389661478,1759774448021,5000.0,0.00019255,9]
[389661479,1759774448074,1500.0,0.00019178,14]
[389661480,1759774448378,1500.0,0.00019178,14]
[389661481,1759774448679,1500.0,0.00019178,14]
[389661482,1759774448978,1500.0,0.00019178,14]
[389661483,1759774449283,1500.0,0.00019178,14]
[389661484,1759774449572,1500.0,0.00019178,14]
[389661485,1759774449872,1500.0,0.00019178,14]
[389661486,1759774450325,1500.0,0.00019178,14]
[389661487,1759774450461,1500.0,0.00019178,14]
[389661488,1759774450759,1500.0,0.00019178,14]
[389661489,1759774451054,1500.0,0.00019178,14]
[389661490,1759774451529,1500.0,0.00019178,14]
[389661491,1759774451638,1500.0,0.00019178,14]
[389661492,1759774451957,1500.0,0.00019178,14]
[389661493,1759774452243,1500.0,0.00019178,14]
[389661494,1759774452525,1500.0,0.00019178,14]
[389661495,1759774452817,1500.0,0.00019178,14]
[389661496,1759774453408,1500.0,0.00019178,14]
[389661497,1759774453692,1500.0,0.00019178,14]
[389661498,1759774453981,1500.0,0.00019178,14]
[389661499,1759774454270,403.290971,0.00019178,14]
[389661500,1759774542010,160.27899246,0.00024932,30]
[389661501,1759774647890,3000.0,0.000193,14]
[389661502,1759774647915,2000.0,0.000193,14]
[389661503,1759774663396,1000.0,0.000193,14]
[389661504,1759774663422,3000.0,0.000193,14]
[389661523,1759775305651,2511.47112804,0.00015,2]
[389661557,1759775432423,-442.24146824,0.00017239,2]
[389661561,1759775432531,-4557.75853176,0.00017239,2]
[389661563,1759775432541,-286.19346402,0.00017612,2]
[389661565,1759775432555,-638.28472012,0.00017988,2]
[389661567,1759775432566,-1.71527988,0.00017988,2]
[389661569,1759775432575,-300.0,0.00017989,2]
[389661571,1759775432585,-426.01797435,0.00017989,2]
[389661575,1759775432597,-460.93155586,0.00017989,2]
[389661630,1759775438319,-1110.91819394,0.00017067,2]
[389661632,1759775438330,-1820.95596561,0.00017067,2]
[389661635,1759775438342,-265.12036769,0.00017067,2]
[389661637,1759775438354,-488.15315179,0.00017067,2]
[389661639,1759775438365,-119.3553327,0.00017989,2]
[389661641,1759775438376,-193.69513709,0.00017989,2]
[389661643,1759775438385,-85.41234373,0.0001799,2]
[389661910,1759775440653,-168.0,0.00017982,2]
[389661912,1759775440662,-197.7,0.0001799,2]
[389661915,1759775440673,-761.33082744,0.0001799,2]
[389661917,1759775440684,-1801.82928709,0.0001799,2]
[389663256,1759775534880,1013.0,0.00028767,120]
[389663257,1759775593790,-6000.0,0.00019063,7]
[389663258,1759775651441,-1135.0,0.00019961,7]
[389663259,1759775690984,1067.102353,0.00013699,2]
[389663260,1759775728927,200.0,0.0001799,10]
[389663305,1759776040419,500.0,0.00027397,120]
[389663306,1759776040778,500.0,0.00027397,120]
[389663307,1759776041008,413.32,0.00027397,120]
[389663308,1759776059452,5000.0,0.00019255,9]
[389663309,1759776082093,4299.05278636,0.00019255,9]
[389663312,1759776467941,3746.09280062,0.0002876,120]
[389663313,1759776490673,243.52924621,0.00019255,9]
[389663529,1759776638643,-277.6076601,0.00017099,2]
[389663531,1759776638652,-4.3323399,0.00017185,2]
[389663533,1759776638664,-624.5276601,0.00017185,2]
[389663535,1759776638674,-1500.0,0.00017185,2]
[389663538,1759776638683,-734.9836689,0.00017696,2]
[389663540,1759776638695,-712.7919311,0.00017696,2]
[389663542,1759776638706,-250.0,0.00017721,2]
[389663544,1759776638715,-305.36842611,0.00017899,2]
[389663546,1759776638724,-300.0,0.00017989,2]
[389663548,1759776638733,-101.53563699,0.0001799,2]
[389663604,1759776640648,-8094.73823435,0.0001799,2]
[389663610,1759776640703,-8198.24436714,0.0001799,2]
[389663942,1759776646627,-1547.48338575,0.0001799,2]
[389663949,1759776646682,-2516.44502511,0.0001799,2]
[389663951,1759776646691,-329.99769654,0.00018031,2]
[389663953,1759776646701,-168.0,0.00018146,2]
[389663955,1759776646710,-168.0,0.00018295,2]
[389663957,1759776646719,-168.0,0.00018348,2]
[389663959,1759776646728,-1314.252624,0.00018378,2]
[389663961,1759776646737,-11290.47761105,0.00018389,2]
[389663963,1759776646748,-4202.23201865,0.00018389,2]
[389663966,1759776646757,-168.0,0.00018426,2]
[389663968,1759776646766,-4270.74183016,0.00018439,2]
[389663970,1759776646775,-18603.8837,0.00018467,2]
[389663972,1759776646785,-151.0,0.00018467,2]
[389663994,1759776646961,-625.7,0.00018468,3]
[389663996,1759776646970,-312.85,0.00018468,3]
[389663998,1759776646980,-156.42,0.00018468,3]
[389664000,1759776646988,-469.3,0.00018468,3]
[389664002,1759776646997,-503.31128271,0.00018473,2]
[389664004,1759776647007,-500.0,0.00018473,2]
[389664006,1759776647016,-500.0,0.00018473,2]
[389664008,1759776647025,-500.0,0.00018473,2]
[389664010,1759776647034,-500.0,0.00018473,2]
[389664012,1759776647043,-500.0,0.00018473,2]
[389664014,1759776647052,-500.0,0.00018473,2]
[389664016,1759776647061,-500.0,0.00018473,2]
[389664018,1759776647071,-500.0,0.00018473,2]
[389664020,1759776647080,-500.0,0.00018473,2]
[389664022,1759776647089,-203.81341681,0.00018473,2]
[389664024,1759776647098,-500.0,0.00018473,2]
[389664026,1759776647107,-500.0,0.00018473,2]
[389664028,1759776647116,-500.0,0.00018473,2]
[389664030,1759776647126,-634.69496785,0.00018473,2]
[389664032,1759776647135,-500.0,0.00018473,2]
[389664034,1759776647144,-500.0,0.00018473,2]
[389664036,1759776647154,-500.0,0.00018473,2]
[389664038,1759776647164,-501.52920836,0.00018473,2]
[389664040,1759776647173,-500.0,0.00018473,2]
[389664042,1759776647184,-500.0,0.00018473,2]
[389664044,1759776647194,-500.0,0.00018473,2]
[389664046,1759776647204,-500.0,0.00018473,2]
[389664047,1759776647215,-500.0,0.00018473,2]
[389664048,1759776647225,-506.7558081,0.00018477,2]
[389664049,1759776647235,-567.09429717,0.00018477,2]
[389664050,1759776647245,-255.79882454,0.00018477,2]
[389664051,1759776647255,-154.57571869,0.00018477,2]
[389664052,1759776647265,-179.05917717,0.00018477,2]
[389664053,1759776647277,-151.0,0.00018478,2]
[389664054,1759776647288,-151.0,0.00018478,2]
[389664055,1759776647298,-151.0,0.00018478,2]
[389664056,1759776647309,-151.0,0.00018478,2]
[389664057,1759776647319,-151.0,0.00018478,2]
[389664058,1759776647330,-151.0,0.00018478,2]
[389664059,1759776647340,-151.0,0.00018478,2]
[389664060,1759776647350,-151.0,0.00018478,2]
[389664061,1759776647361,-151.0,0.00018478,2]
[389664062,1759776647371,-151.0,0.00018478,2]
[389664063,1759776647383,-151.0,0.00018478,2]
[389664064,1759776647396,-151.0,0.00018478,2]
[389664065,1759776647407,-151.0,0.00018478,2]
[389664066,1759776647416,-151.0,0.00018478,2]
[389664067,1759776647429,-151.0,0.00018478,2]
[389664068,1759776647439,-151.0,0.00018478,2]
[389664069,1759776647451,-151.0,0.00018478,2]
[389664070,1759776647461,-151.0,0.00018478,2]
[389664071,1759776647471,-151.0,0.00018478,2]
[389664072,1759776647481,-151.0,0.00018478,2]
[389664073,1759776647491,-151.0,0.00018478,2]
[389664074,1759776647501,-151.405696,0.00018478,2]
[389664075,1759776647512,-151.0,0.00018478,2]
[389664076,1759776647521,-151.0,0.00018478,2]
[389664077,1759776647530,-151.0,0.00018478,2]
[389664078,1759776647540,-151.0,0.00018478,2]
[389664079,1759776647551,-151.0,0.00018478,2]
[389664080,1759776647560,-151.0,0.00018478,2]
[389664081,1759776647570,-151.0,0.00018478,2]